Cogmind - Beta 17.1 @@@ ROGUE MODE // 2026.09.09 @ 02:33:27 Player: KURIIRI Result: Destroyed by GO-XVX(R) with Subdweller Machine Gun Performance ------------- Evolutions (0) 0 Regions Visited (2) 400 Robots Destroyed (49) 245 Value Destroyed (962) 962 Prototype IDs (0) 0 Alien Tech Used (0) 0 Bonus (0) 0 TOTAL SCORE: 1607 Bonus ------- None Cogmind --------- Core Integrity 0/250 Matter 114/300 Energy 125/125 System Corruption 0% Temperature Cool (10) Movement Treading (160) Location -10/Subcaves Parts ------- > --- POWER (1) -------- Light Ion Engine > --- PROPULSION (2) --- Light Treads Spiked Treads > --- UTILITY (2) ------ Large Storage Unit Makeshift Light Armor Plating > --- WEAPON (2) ------- Subdweller Laser Subdweller Beam Cannon > --- INVENTORY (15) --- Light Treads Light Treads Light Treads Wheel Flight Unit Flight Unit Flight Unit Makeshift Kinetic Plating Makeshift Hacking Suite Grenade Launcher Grenade Launcher Subdweller Shrapnel Launcher Multitool Makeshift Axe Peak State ------------ > --- POWER ------------ Light Ion Engine > --- PROPULSION ------- Light Treads Spiked Treads > --- UTILITY ---------- Large Storage Unit Makeshift Light Armor Plating > --- WEAPON ----------- Subdweller Beam Cannon Subdweller Beam Cannon > --- INVENTORY -------- Light Ion Engine Light Treads Light Treads Light Treads Wheel Flight Unit Flight Unit Flight Unit Makeshift Hacking Suite Subdweller Laser Assault Rifle Grenade Launcher Grenade Launcher Subdweller Shrapnel Launcher Multitool [Rating: 15] Favorites ----------- Power Light Ion Engine Engine Light Ion Engine Propulsion Light Treads Treads Light Treads Leg Aluminum Leg Utility Large Storage Unit Device Seismic Detector Storage Large Storage Unit Protection Makeshift Light Armor Plating Weapon Subdweller Beam Cannon Energy Gun Subdweller Laser Energy Cannon Subdweller Beam Cannon Ballistic Gun Assault Rifle Launcher Grenade Launcher Build | -11 -10 -10 ------- Run | Yrd Mat Sub Slots Evolved . | . . . Power . | . . . Propulsion . | . . . Utility . | . . . Weapon . | . . . Parts Attached 17 | 3 6 8 Power . | . . . Engine . | . . . Core . | . . . Reactor . | . . . Propulsion 5 | 2 1 2 Treads 5 | 2 1 2 Leg . | . . . Wheel . | . . . Hover . | . . . Flight . | . . . Utility 3 | 1 1 1 Device 1 | 1 . . Storage 1 | . 1 . Processor . | . . . Hackware . | . . . Protection 1 | . . 1 Artifact . | . . . Weapon 9 | . 4 5 Energy Gun 3 | . 1 2 Energy Cannon 2 | . . 2 Ballistic Gun 1 | . 1 . Ballistic Cannon . | . . . Launcher 3 | . 2 1 Special Weapon . | . . . Impact Weapon . | . . . Slashing Weapon . | . . . Piercing Weapon . | . . . Special Melee Weapon . | . . . Unidentified Prototypes . | . . . Parts Lost 2 | . . 2 Power . | . . . Propulsion . | . . . Utility . | . . . Weapon 2 | . . 2 Highest Loss Streak 1 | . . 1 To Critical Strikes . | . . . Average Backups 13 | 5 10 14 Power . | 1 1 . Propulsion 6 | 3 4 6 Utility 1 | . . 1 Weapon 4 | 1 3 5 Tool/Special . | . . . Unused Backups 19 | . 5 14 Power . | . . . Propulsion 7 | . 1 6 Utility 4 | . 1 3 Weapon 7 | . 3 4 Tool/Special 1 | . . 1 Average Slot Usage (%) 99 | . 100 99 Engine 14 | . 14 14 Treads 28 | . 28 28 Device 8 | . 14 6 Storage 14 | . 14 14 Protection 5 | . . 7 Energy Gun 9 | . 9 9 Energy Cannon 9 | . . 14 Ballistic Gun 7 | . 16 3 Launcher 1 | . 2 . Peak Build Rating 15 | 7 8 15 Average Rating 10 | 6 7 12 On Entrance 7 | 6 7 8 Avg Prop Armor Cover (%) . | . . . Naked Turns . | . . . Heaviest Build 43 | 13 29 43 Greatest Support 40 | 40 40 40 Greatest Overweight (x) 1 | . . 1 Average Overweight (x) . | . . . Largest Inventory Capacity 15 | 8 15 15 Average Capacity 14 | 8 14 15 Most Carried 15 | 6 15 15 Average Carried 13 | 5 10 14 Final Capacity 15 | 8 15 15 Final Carried 15 | 4 15 14 Class Distribution -------------------- 89% | Mutant 10% | Scavenger-Mutant Dominant Class ---------------- Mutant | -10/Materials Mutant | -10/Subcaves Resources | -11 -10 -10 ----------- Run | Yrd Mat Sub Matter Collected 794 | 230 272 292 Remotely . | . . . Salvage Created 1233 | 101 520 612 Parts 101 | 5 53 43 Haulers Intercepted 2 | . 2 . Recyclers Shooed . | . . . Parts Field Recycled . | . . . Retrieved Matter . | . . . Parts Self-Destructed 28 | . . 28 Prevented . | . . . Parts Restored . | . . . Kills | -11 -10 -10 ------- Run | Yrd Mat Sub Combat Hostiles Destroyed 35 | . 14 21 Guns 10 | . 5 5 Cannons 6 | . . 6 AOE 19 | . 9 10 Classes Destroyed 11 | 2 6 3 Worker 2 | . 2 . Builder 2 | . 2 . Tunneler 2 | 1 1 . Hauler 2 | . 2 . Recycler 2 | 1 1 . Turret 2 | . . 2 Watcher 2 | . 2 . Swarmer 20 | . 9 11 Grunt 5 | . 5 . Sentry 1 | . . 1 Subdweller 9 | . . 9 Best Kill Streak 9 | 2 5 9 Combat Bots Only 7 | . 4 7 Max Kills in Single Turn 3 | 1 3 3 Gunslinging . | . . . Exploded 3 | . 3 3 Melee . | . . . Uniques/NPCs Destroyed . | . . . Combat | -11 -10 -10 -------- Run | Yrd Mat Sub Hostile Shots Fired 92 | . 41 51 Missed 26 | . 12 14 Hits 66 | . 29 37 Projectile 66 | . 29 37 AOE 2 | . . 2 Critical Strikes 1 | . 1 . Damage Taken 1040 | . 346 694 Core 263 | . 95 168 Absorbed by Shields . | . . . Core Remaining (%) 100 | 100 . . Volleys Fired 123 | 6 39 78 Largest 2 | 2 2 2 Hottest 160 | 70 70 160 Shots Fired 203 | 12 67 124 Gun 151 | 12 56 83 Cannon 30 | . . 30 Launcher 22 | . 11 11 Special . | . . . Kinetic 90 | 6 41 43 Thermal 102 | 6 15 81 Explosive 11 | . 11 . Electromagnetic . | . . . Robot Hit Streak 27 | 2 13 27 Robot Miss Streak 3 | 3 3 3 Penetration Max . | . . . Secondary Targets 1 | . 1 . Max Gunslinging Chain 1 | . 1 . Shots Hit Robots 120 | 5 38 77 Core Hits 76 | 3 36 37 Critical Kills . | . . . Critical Parts Destroyed . | . . . Critical Strikes 1 | . 1 . Burn 1 | . 1 . Melee Attacks . | . . . Impact . | . . . Slashing . | . . . Piercing . | . . . Sneak Attacks . | . . . Combat Hostiles . | . . . Follow-up Attacks . | . . . Damage Inflicted 3275 | 56 1144 2075 Guns 1264 | 56 437 771 Cannons 602 | . . 602 Explosions 1395 | . 693 702 Melee . | . . . Ramming 14 | . 14 . Kinetic 1346 | 44 322 980 Thermal 1222 | 12 115 1095 Explosive 693 | . 693 . Electromagnetic . | . . . Impact . | . . . Slashing . | . . . Piercing . | . . . Highest Corruption . | . . . Average Corruption . | . . . Corruption Purged . | . . . Corruption Blocked . | . . . Overload Shots . | . . . Overflow Damage 52 | . 30 22 Projectiles . | . . . Explosions 52 | . 30 22 Melee . | . . . Knockbacks . | . . . Impact . | . . . Kinetic . | . . . Secondary . | . . . Self-Inflicted Damage 73 | . 36 37 Shots 3 | . 2 1 Rammed 3 | . 3 . Targets Rammed 3 | . 3 . Kicked . | . . . Crushed . | . . . Highest Temperature 165 | 47 63 165 Average Temperature 32 | 23 14 52 Received Heat Transfer 189 | . 144 45 Siege Activations . | . . . Martial Activations . | . . . Shielding Activations . | . . . Robots Disrupted . | . . . Combat Hostiles . | . . . Robots Corrupted . | . . . Combat Hostiles . | . . . Parts Fried . | . . . Impact Corruptions . | . . . Robots Melted . | . . . Combat Hostiles . | . . . Parts Melted 5 | . 1 4 Heat Transferred 2188 | 37 407 1744 Parts Sabotaged . | . . . Parts Stolen . | . . . Parts Stripped . | . . . Power Chain Reactions . | . . . Alert | -11 -10 -10 ------- Run | Yrd Mat Sub Maximum Alert Level 1 | . 1 . Low Security (%) 56 | 100 54 . Level 1 43 | . 45 . Level 2 . | . . . Level 3 . | . . . Level 4 . | . . . Level 5 . | . . . High Security . | . . . Max Security . | . . . Peak Influence 335 | 10 335 . Initial . | . . . Average 147 | 2 153 . Influence Increases 891 | 10 536 345 Destroy 0b10 Robot/C 560 | . 280 280 Destroy 0b10 Robot/NC 60 | 10 50 . Destroy Leader 78 | . 58 20 Disable Machine 60 | . 60 . Destroy Structure 58 | . 58 . Lose Combat Pursuer 75 | . 30 45 Influence Decreases 709 | 10 264 435 Entered New Map 132 | . . 132 Time Decay 567 | 10 264 293 Lost Part 10 | . . 10 Squads Dispatched 1 | . 1 . Investigation . | . . . Extermination . | . . . Reinforcement 1 | . 1 . Assault . | . . . Garrison . | . . . Intercept . | . . . Searches Triggered . | . . . Construction Impeded . | . . . Haulers Reinforced . | . . . Active Scanning Responses . | . . . Cargo Convoy Interrupts . | . . . Stealth | -11 -10 -10 --------- Run | Yrd Mat Sub Distress Signals . | . . . Communications Jammed . | . . . Distress Signals . | . . . Times Spotted 45 | . 21 24 Peak Tracking Total 6 | . 3 6 Tactical Retreats 2 | . 1 1 Traps | -11 -10 -10 ------- Run | Yrd Mat Sub Traps Triggered . | . . . Indirectly . | . . . Trap Hack Attempts . | . . . Triggered . | . . . Disarmed . | . . . Reprogrammed . | . . . Reused . | . . . Traps Extracted . | . . . Installed . | . . . Triggered . | . . . Machines | -11 -10 -10 ---------- Run | Yrd Mat Sub Machines Disabled 7 | . 4 3 Max in Single Turn 3 | . 3 1 Machines Repaired . | . . . Machines Dismantled . | . . . Machines Sabotaged . | . . . Overloaded Fab Kills . | . . . Hacking | -11 -10 -10 --------- Run | Yrd Mat Sub Machines Accessed 2 | . . 2 Terminals . | . . . Fabricators . | . . . Repair Stations . | . . . Recycling Units . | . . . Scanalyzers . | . . . Garrison Access . | . . . Total Hacks 4 | . . 4 Successful 4 | . . 4 Failed . | . . . Catastrophic . | . . . Database Lockouts . | . . . Manual . | . . . Terminals . | . . . Fabricators . | . . . Repair Stations . | . . . Recycling Units . | . . . Scanalyzers . | . . . Garrison Access . | . . . Terminal Hacks 4 | . . 4 Record 3 | . . 3 Open Door 1 | . . 1 Fabricator Hacks . | . . . Repair Station Hacks . | . . . Recycling Unit Hacks . | . . . Scanalyzer . | . . . Garrison Access Hacks . | . . . Unauthorized Hacks . | . . . Terminals . | . . . Fabricators . | . . . Repair Stations . | . . . Recycling Units . | . . . Scanalyzers . | . . . Garrison Access . | . . . Data Cores Recovered . | . . . Used . | . . . Hacking Detections . | . . . Full Trace Events . | . . . Feedback Events . | . . . Feedback Blocked . | . . . Robot Schematics Acquired . | . . . Robots Built . | . . . Authchips . | . . . Time . | . . . Total Robot Build Rating . | . . . Part Schematics Acquired . | . . . Parts Built . | . . . Authchips . | . . . Time . | . . . Total Part Build Rating . | . . . Part Studies Acquired . | . . . Parts Repaired . | . . . Time . | . . . Parts Recycled . | . . . Recycled Matter . | . . . Retrieved Matter . | . . . Retrieved Components . | . . . Parts Scanalyzed . | . . . Part Schematics Acquired . | . . . Parts Damaged . | . . . Bothacking | -11 -10 -10 ------------ Run | Yrd Mat Sub Used RIF Installer . | . . . Robots Hacked . | . . . Non-combat . | . . . Combat . | . . . Robot Hacks Applied . | . . . Relay Couplers Released . | . . . Fabnet Peak Effective % . | . . . Robots Rewired . | . . . Allies Hacked . | . . . Hacks Repelled . | . . . Allies | -11 -10 -10 -------- Run | Yrd Mat Sub Total Allies . | . . . Largest Group . | . . . Highest-Rated Group . | . . . Highest-Rated Ally . | . . . Total Orders . | . . . Ally Attacks . | . . . Total Damage . | . . . Kills . | . . . Allies Corrupted . | . . . Allies Melted . | . . . Intel | -11 -10 -10 ------- Run | Yrd Mat Sub Active Infowar (turns) 1856 | 14 894 948 Seismic 1856 | 14 894 948 Robot Analysis Total . | . . . Derelict Logs Recovered 2 | . . 2 Drone Launches . | . . . Drone Recoveries . | . . . Exploration | -11 -10 -10 ------------- Run | Yrd Mat Sub Turns Passed 3019 | 39 894 2086 Spaces Moved 1352 | 12 437 903 Core . | . . . Treads 1347 | 7 437 903 Legs 5 | 5 . . Wheels . | . . . Hover . | . . . Flight . | . . . Fastest Speed 120 | 120 160 160 Average Speed 163 | 143 160 164 Slowest Speed 250 | 160 160 250 Overloaded Moves . | . . . Propulsion Burnouts . | . . . Robots Hopped . | . . . Potential Cave-ins . | . . . Cave-ins Triggered . | . . . Exploration Rate (%) 46 | 2 70 67 Regions Visited 2 Branch Regions 1 Pre-discovered Areas 2 | . . 2 Known Exits Taken . | . . . Unknown Exits Taken 2 | 1 1 . Scrap Searched 4 | . . 4 Spaces Dug . | . . . Terrain Destroyed 180 | . 57 123 Melee . | . . . Projectile 1 | . . 1 AOE 179 | . 57 122 Terrain Rammed . | . . . Walls Destroyed . | . . . Machines Disabled . | . . . Actions | -11 -10 -10 --------- Run | Yrd Mat Sub Total 1962 | 22 566 1374 Wait 416 | . 56 360 Move 1350 | 11 436 903 Hop . | . . . Pick Up 25 | . 16 9 Fast Attach 2 | 1 . 1 Attach 5 | 2 . 3 Detach . | . . . Swap 19 | . 9 10 Drop 19 | 2 7 10 Fire 123 | 6 39 78 Melee . | . . . Ram . | . . . Kick . | . . . Crush 3 | . 3 . Escape Stasis . | . . . Rewire . | . . . Trap . | . . . Miscellaneous . | . . . Route ------- -11/Scrapyard -10/Materials (discovered 4 exits: [*Mat x2] / [*Min] / *Sub) -10/Subcaves (discovered 3 exits: [*Mat x2] / [*Rec]) History --------- Turn | Location | Event 20 | -11/Scrapyard | Discovered new exit (range 3) 40 | -11/Scrapyard | Entered Materials 311 | -10/Materials | Build established: Mutant 370 | -10/Materials | Discovered new exit (range 16) 407 | -10/Materials | Discovered new exit (range 7) 492 | -10/Materials | Discovered new exit (range 12) 674 | -10/Materials | Discovered new exit (range 12) 934 | -10/Materials | Entered Subcaves 1258 | -10/Subcaves | Learned Materials non-interactive machine intel 1421 | -10/Subcaves | Core integrity fell below 50% 1737 | -10/Subcaves | Build established: Scavenger-Mutant 1760 | -10/Subcaves | Learned location of Zion (-6) 1760 | -10/Subcaves | Met a Zionite searching for "candidates" 1815 | -10/Subcaves | Disturbed a concealed Subdweller 1882 | -10/Subcaves | Disturbed a concealed Subdweller 2055 | -10/Subcaves | Build established: Mutant 2376 | -10/Subcaves | Core integrity fell below 20% 2697 | -10/Subcaves | Visited Clippyterm 2702 | -10/Subcaves | Learned Factory garrison access intel 2720 | -10/Subcaves | Discovered new exit (range 10) 2732 | -10/Subcaves | Shifting Twisted Machinery released Sub. Laser 2733 | -10/Subcaves | Shifting Twisted Machinery released Mak. Kinetic Plating 2777 | -10/Subcaves | Discovered new exit (range 4) 2799 | -10/Subcaves | Discovered new exit (range 15) 2829 | -10/Subcaves | Destroyed 7 combat bots 3020 | -10/Subcaves | Destroyed by GO-XVX(R) with Subdweller Machine Gun Last Messages --------------- 02792_ Lgt. Assault Rifle fries itself beyond repair. 02793_ Autobeam fries itself beyond repair. 02795_ Autobeam Turret destroyed. 02797_ Flight Unit fries itself beyond repair. 02799_ EXIT=FOUND 02800_ Lgt. Ion Engine fries itself beyond repair. 02802_ UT-5QC(R): "HIDIE!" 02803_ NC-HBO(R): "ARGHSUB!" 02803_ Lgt. Assault Rifle fries itself beyond repair. 02804_ UT-5QC(R) destroyed. 02807_ K7-BCJ(R): "THANKSYOU!" 02808_ NC-HBO(R) destroyed. 02808_ K7-BCJ(R) destroyed. 02836_ Acquired 2 matter. 02839_ Acquired 33 matter. 02940_ Acquired 19 matter. Map ----- +----------------------------------------------------+ | #" ###???????#### ### ##????????????????? | | ## ?????????## ### #????????????????? | | ?######????## ### #????????????????? | | ??## ###### #????????????????? | | ??# ] ##????????????????? | | ??### ##?????????????????? | | ????### ### #??????????????????? | | ??????## ### ### ##??????????????????? | | ??????## ### ##???????????????????? | | ???#### ### ##????????????????????? | | ??## ## ### #?????????????????????? | | ??# #?# #?????????????????????? | | ?# ### #####?# ##????????????????????? | | ####??# ## #?????## ##???????????????????? | | #### ## ######?# ###?????????????????? | | ## ### #?????????????????? | | ##????????????????? | | ## ### ##???????????????? | | ####?#### #???????????????? | | ????????# ##???????????????? | | ???????# ## ##???????????????? | | ???????# #### #???????????????? | | ???????## #??# ###???????????????? | | ????????# #??## ## ####?????????????????? | | ????????## #???###### ## #????????????????????? | | ??????????##???????## ##@ #????????????????????? | | ???????????????????# # ##????????????????????? | | ???????????????????# R #???##????????????????? | | ???????????????????## #?? #????????????????? | | ???????????????????# ## #? #????????????????? | | ???????????????????## # #? #????????????????? | | ???????????????????# # # #????????????????? | | ???????????????????# #????????????????? | | ???????????????????# # #????????????????? | | ???????????????????# ### ##???????????????? | | ???????????????????# ### ##??????????????? | | ???????????????????# #?# ##?????????????? | | ???????????????????## #?? #?????????????? | | ????????????????????## ### #?????????????? | | ?????????????????????#### #??????????????? | | ????????????????????????# #??????????????? | | ???????????????????????##! #####??????????????? | | ????????????????????####=% ####??????????????????? | | ????????????????????# !* ##????????????????????? | | ????????????????????## =%* ###??????????????????? | | ????????????????????## ! #??????????????????? | | ????????????????????# [ ##??????????????????? | | ????????????????????## ##???????????????????? | | ##???????????????????### ##????????????????????? | | ##??????????????????# ###?????????????????????? | +----------------------------------------------------+ Best States ------------- Heat Dissipation 25 Energy Generation 10 Energy Capacity 125 Matter Stores 300 Matter Capacity 300 Sight Range 16 Terrain Scan Density 10 Armor Coverage 100 Evasion (%) 40 Recoil Reduction 2 Item Schematics ----------------- None Robot Schematics ------------------ None Fabricated ------------ Nothing Repaired ---------- Nothing Studied --------- None Alien Tech Used ----------------- None Achievements -------------- None Challenges ------------ None Game ------ Seed GravitonHeavyReconfigurator Manual? 0 Play Time 00:12:39 Cumulative 670.2 hours Start 2026.09.09 @ 02:22:34 End 2026.09.09 @ 02:33:27 Sessions 1 Manual Loads 0 Difficulty Rogue Special Mode None Game No. 608 Rogue 572 Adventurer 36 Explorer 0 Win Type - Total 8 Types 2/2/0/1/1/0/0/2/0/0 Lore% 86 Gallery% 75 Achievement% 69 Wizard Run 0 Options --------- Layout 2 ASCII 0 Keyboard 0 Movement Numpad Keybinds 0 Fullscreen 1 Font 48/Smallcaps Map View 50x44 Zoom Use 0% Tactical HUD 1 Map Filters NONE Filters NONE Steam 1 RUN: 52084952-4bb2-4ee3-9696-f7ba8430f6df